Cogmind - Beta 13 @@@ ROGUE MODE // 2024.03.16 @ 06:01:43 Player: Fusha Result: Destroyed by G-47 Trooper with Particle Gun Performance ------------- Evolutions (2) 1000 Regions Visited (5) 1000 Robots Destroyed (74) 370 Value Destroyed (2376) 2376 Prototype IDs (25) 500 Alien Tech Used (0) 0 Bonus (1001) 1001 TOTAL SCORE: 6247 Bonus ------- High Alert Combat Kills 701 Aligned with FarCom 300 Cogmind --------- Core Integrity 0/550 Matter 295/300 Energy 290/290 System Corruption 2% Temperature Cool (51) Movement Walking (120) Location -8/Materials Parts ------- > --- POWER (1) -------- Improved Deuterium Engine > --- PROPULSION (3) --- Aluminum Leg Aluminum Leg Aluminum Leg > --- UTILITY (4) ------ Power Amplifier Heat Sink Improved Heat Sink Targeting Computer > --- WEAPON (3) ------- Particle Gun Heavy Laser Assault Cannon > --- INVENTORY (5) ---- AWS/Thermal Ion Cannon Heavy Assault Rifle Katana Peak State ------------ > --- POWER ------------ Deuterium Engine > --- PROPULSION ------- VSS Leg VSS Leg VSS Leg > --- UTILITY ---------- Cryofiber Web Large Storage Unit Target Analyzer Core Shielding > --- WEAPON ----------- Field Laser AWS/Thermal > --- INVENTORY -------- VSS Leg Heavy EM Shotgun Heavy Laser Advanced Beam Cannon Advanced Beam Cannon Heavy Particle Cannon Shock Bomb Launcher Katana Katana [Rating: 41] Favorites ----------- Power Ion Engine Engine Ion Engine Power Core Nuclear Core Propulsion Aluminum Leg Treads Light Treads Leg Aluminum Leg Utility Improved Heat Sink Device Improved Heat Sink Storage Small Storage Unit Processor Targeting Computer Hackware Hacking Suite Protection Core Shielding Weapon Particle Gun Energy Gun Particle Gun Energy Cannon Beam Cannon Ballistic Gun Heavy Assault Rifle Ballistic Cannon Assault Cannon Launcher Grenade Launcher Slashing Weapon Katana Build | -11 -10 -10 -10 -9 -8 ------- Run | Yrd Mat Min Exi Min Mat Slots Evolved 4 | . . . . . 4 Power . | . . . . . . Propulsion 1 | . . . . . 1 Utility 2 | . . . . . 2 Weapon 1 | . . . . . 1 Parts Attached 97 | 6 6 2 . 5 78 Power 14 | 1 1 . . 1 11 Engine 12 | 1 1 . . 1 9 Core 2 | . . . . . 2 Reactor . | . . . . . . Propulsion 22 | 2 2 1 . 2 15 Treads 7 | . . . . 1 6 Leg 15 | 2 2 1 . 1 9 Wheel . | . . . . . . Hover . | . . . . . . Flight . | . . . . . . Utility 20 | 1 1 1 . . 17 Device 11 | . 1 1 . . 9 Storage 3 | 1 . . . . 2 Processor 2 | . . . . . 2 Hackware 1 | . . . . . 1 Protection 3 | . . . . . 3 Artifact . | . . . . . . Weapon 41 | 2 2 . . 2 35 Energy Gun 16 | . 1 . . 1 14 Energy Cannon 4 | . 1 . . . 3 Ballistic Gun 4 | 2 . . . . 2 Ballistic Cannon 1 | . . . . . 1 Launcher 9 | . . . . 1 8 Special Weapon . | . . . . . . Impact Weapon . | . . . . . . Slashing Weapon 7 | . . . . . 7 Piercing Weapon . | . . . . . . Special Melee Weapon . | . . . . . . Unidentified Prototypes . | . . . . . . Parts Lost 18 | . . . . 5 13 Power 3 | . . . . 1 2 Propulsion 4 | . . . . 2 2 Utility 6 | . . . . . 6 Weapon 5 | . . . . 2 3 Highest Loss Streak 5 | . . . . 5 2 To Critical Strikes . | . . . . . . Average Slot Usage (%) 88 | . 94 100 100 89 83 Engine 8 | . 14 14 14 11 6 Core 1 | . . . . . 2 Treads 8 | . . . . 2 12 Leg 15 | . 28 28 28 21 8 Device 10 | . 9 14 14 14 9 Storage 10 | . 14 14 14 14 8 Processor 2 | . . . . . 3 Hackware 1 | . . . . . 2 Protection 4 | . . . . . 7 Energy Gun 10 | . 9 14 14 10 9 Energy Cannon 5 | . 2 14 14 10 1 Ballistic Gun 3 | . 16 . . . 3 Ballistic Cannon 1 | . . . . . 2 Launcher 2 | . . . . 2 3 Slashing Weapon 1 | . . . . . 1 Naked Turns . | . . . . . . Heaviest Build 44 | 11 17 17 17 17 44 Greatest Support 60 | 20 20 20 20 20 60 Greatest Overweight (x) 10 | 2 . . . 4 10 Average Overweight (x) . | . . . . . . Largest Inventory Capacity 15 | 8 8 8 8 8 15 Average Capacity 9 | 7 8 8 8 8 11 Most Carried 15 | 3 8 8 8 8 15 Average Carried 8 | 1 5 8 7 7 9 Final Capacity 8 | 8 8 8 8 8 5 Final Carried 8 | 2 8 8 8 6 5 Class Distribution -------------------- 58% | Mutant 18% | Scavenger-Skirmisher 14% | Skirmisher 8% | Scavenger-Mutant Dominant Class ---------------- Mutant | -10/Materials Mutant | -10/Mines Mutant | -10/Exiles Mutant | -9/Mines Mutant | -8/Materials Resources | -11 -10 -10 -10 -9 -8 ----------- Run | Yrd Mat Min Exi Min Mat Matter Collected 1930 | 208 164 10 . 60 1488 Remotely . | . . . . . . Salvage Created 3000 | . 192 85 . 127 2596 Parts 169 | . 14 8 . 5 142 Haulers Intercepted 4 | . 1 . . . 3 Recyclers Shooed 3 | . . 1 . . 2 Parts Field Recycled . | . . . . . . Retrieved Matter . | . . . . . . Parts Self-Destructed . | . . . . . . Prevented . | . . . . . . Kills | -11 -10 -10 -10 -9 -8 ------- Run | Yrd Mat Min Exi Min Mat Combat Hostiles Destroyed 66 | . 5 3 . 6 52 Melee 1 | . . . . . 1 Guns 46 | . 5 1 . 6 34 Cannons 8 | . . 2 . . 6 AOE 11 | . . . . . 11 Classes Destroyed 15 | . 3 . . 3 9 Worker 3 | . . . . . 3 Builder 2 | . . . . . 2 Hauler 4 | . 1 . . . 3 Recycler 3 | . . . . . 3 Operator 1 | . . . . . 1 Watcher 5 | . . . . . 5 Swarmer 12 | . 3 1 . . 8 Grunt 36 | . 2 2 . 1 31 Brawler 1 | . . . . 1 . Duelist 1 | . . . . . 1 Protector 1 | . . . . . 1 Sentry 9 | . . . . . 9 Demolisher 1 | . . . . 1 . Specialist 2 | . . . . . 2 Assembled 3 | . . . . 3 . Best Kill Streak 7 | . 4 2 . 4 7 Combat Bots Only 6 | . 4 2 . 4 6 Max Kills in Single Turn 3 | . 1 1 . 1 3 Gunslinging . | . . . . . . Exploded 2 | . . . . . 2 Melee 1 | . . . . . 1 Uniques/NPCs Destroyed . | . . . . . . Combat | -11 -10 -10 -10 -9 -8 -------- Run | Yrd Mat Min Exi Min Mat Hostile Shots Fired 413 | . 33 18 . 15 347 Missed 131 | . 15 5 . 2 109 Damage Taken 4448 | . 205 126 . 530 3587 Core 729 | . 48 13 . 108 560 Absorbed by Shields . | . . . . . . Redirected to Shielding 74 | . . . . . 74 Regen/Repaired (Parts) 43 | . . . . . 43 Core Remaining (%) 66 | 100 . . . 32 . Volleys Fired 188 | . 16 11 . 11 150 Largest 3 | . 2 2 . 2 3 Hottest 207 | . 125 125 . 125 207 Shots Fired 462 | . 32 22 . 28 380 Gun 349 | . 29 11 . 19 290 Cannon 82 | . 3 11 . 9 59 Launcher 31 | . . . . . 31 Special . | . . . . . . Kinetic 144 | . 26 . . . 118 Thermal 287 | . 6 22 . 28 231 Explosive 19 | . . . . . 19 Electromagnetic 12 | . . . . . 12 Robot Hit Streak 21 | . 10 4 . 8 21 Robot Miss Streak 10 | . 8 2 . 2 10 Penetration Max . | . . . . . . Secondary Targets . | . . . . . . Autonomous 54 | . . . . 8 46 Shots Hit Robots 265 | . 17 11 . 19 218 Core Hits 145 | . 10 4 . 8 123 Critical Kills 1 | . . . . . 1 Critical Parts Destroyed . | . . . . . . Critical Strikes 9 | . . . . . 9 Burn 8 | . . . . . 8 Destroy 1 | . . . . . 1 Melee Attacks 5 | . . . . . 5 Impact . | . . . . . . Slashing 5 | . . . . . 5 Piercing . | . . . . . . Sneak Attacks . | . . . . . . Combat Hostiles . | . . . . . . Follow-up Attacks . | . . . . . . Damage Inflicted 7234 | . 220 186 . 417 6411 Guns 3867 | . 185 63 . 312 3307 Cannons 1129 | . 35 123 . 105 866 Explosions 2141 | . . . . . 2141 Melee 97 | . . . . . 97 Ramming . | . . . . . . Kinetic 1286 | . 155 . . . 1131 Thermal 3821 | . 65 186 . 417 3153 Explosive 1310 | . . . . . 1310 Electromagnetic 720 | . . . . . 720 Impact . | . . . . . . Slashing 97 | . . . . . 97 Piercing . | . . . . . . Highest Corruption 2 | . . . . . 2 Average Corruption 2 | . . . . . 2 Corruption Purged . | . . . . . . Corruption Blocked . | . . . . . . Effects 27 | . . . . . 27 Message Errors 5 | . . . . . 5 Matter Fused 5 | . . . . . 5 Heat Flow Errors 3 | . . . . . 3 Energy Discharges 9 | . . . . . 9 Parts Rejected 1 | . . . . . 1 Data Loss (minor) 1 | . . . . . 1 Misfires 1 | . . . . . 1 Alerts 2 | . . . . . 2 Overload Shots . | . . . . . . Overflow Damage 24 | . . . . . 24 Projectiles 10 | . . . . . 10 Explosions 13 | . . . . . 13 Melee 1 | . . . . . 1 Knockbacks 3 | . . . . . 3 Impact . | . . . . . . Kinetic 3 | . . . . . 3 Secondary . | . . . . . . Self-Inflicted Damage 40 | . . . . . 40 Shots 2 | . . . . . 2 Rammed . | . . . . . . Targets Rammed . | . . . . . . Kicked . | . . . . . . Crushed . | . . . . . . Highest Temperature 378 | . 21 189 . 63 378 Average Temperature 76 | . 11 71 . 32 85 Received Heat Transfer 1813 | . 75 42 . 40 1656 Effects 4 | . . . . . 4 Energy Bleed 1 | . . . . . 1 Interference 2 | . . . . . 2 Damage (minor) 1 | . . . . . 1 Siege Activations . | . . . . . . Robots Corrupted . | . . . . . . Combat Hostiles . | . . . . . . Parts Fried 2 | . . . . . 2 Impact Corruptions . | . . . . . . Robots Melted . | . . . . . . Combat Hostiles . | . . . . . . Parts Melted 14 | . . 1 . . 13 Heat Transferred 7334 | . 148 407 . 703 6076 Parts Sabotaged . | . . . . . . Parts Stolen . | . . . . . . Parts Stripped . | . . . . . . Power Chain Reactions 2 | . . . . . 2 Alert | -11 -10 -10 -10 -9 -8 ------- Run | Yrd Mat Min Exi Min Mat Peak Influence 1307 | . 127 174 . 50 1307 Initial 49 | . . 49 . . 7 Average 386 | . 95 110 . 28 475 Maximum Alert Level 4 | . . . . . 4 Low Security (%) 50 | 100 100 100 . 100 36 Level 1 13 | . . . . . 17 Level 2 10 | . . . . . 13 Level 3 16 | . . . . . 20 Level 4 9 | . . . . . 12 Level 5 . | . . . . . . High Security . | . . . . . . Max Security . | . . . . . . Sterilizations 1 | . . . . . 1 Squads Dispatched 23 | . . . . . 23 Investigation 3 | . . . . . 3 Extermination . | . . . . . . Reinforcement 4 | . . . . . 4 Assault 3 | . . . . . 3 Garrison 13 | . . . . . 13 Intercept . | . . . . . . Searches Triggered . | . . . . . . Construction Impeded . | . . . . . . Haulers Reinforced . | . . . . . . Active Scanning Responses . | . . . . . . Cargo Convoy Interrupts . | . . . . . . Stealth | -11 -10 -10 -10 -9 -8 --------- Run | Yrd Mat Min Exi Min Mat Distress Signals 10 | . 2 . . . 8 Communications Jammed . | . . . . . . Distress Signals . | . . . . . . Times Spotted 111 | . 4 5 . 7 95 Peak Tracking Total 6 | . 5 3 . 4 6 Tactical Retreats 13 | . . 1 . . 12 Traps | -11 -10 -10 -10 -9 -8 ------- Run | Yrd Mat Min Exi Min Mat Traps Triggered 2 | . . . . . 2 Indirectly 1 | . . . . . 1 Trap Hack Attempts . | . . . . . . Triggered . | . . . . . . Disarmed . | . . . . . . Reprogrammed . | . . . . . . Reused . | . . . . . . Traps Extracted . | . . . . . . Installed . | . . . . . . Triggered . | . . . . . . Machines | -11 -10 -10 -10 -9 -8 ---------- Run | Yrd Mat Min Exi Min Mat Machines Disabled 5 | . . . . . 5 Max in Single Turn 2 | . . . . . 2 Machines Repaired . | . . . . . . Machines Dismantled . | . . . . . . Machines Sabotaged . | . . . . . . Overloaded Fab Kills . | . . . . . . Hacking | -11 -10 -10 -10 -9 -8 --------- Run | Yrd Mat Min Exi Min Mat Machines Accessed 14 | . 1 . 5 . 8 Terminals 7 | . 1 . . . 6 Fabricators . | . . . . . . Repair Stations 1 | . . . . . 1 Recycling Units . | . . . . . . Scanalyzers 1 | . . . . . 1 Garrison Access . | . . . . . . Total Hacks 78 | . 2 . 50 . 26 Successful 62 | . 1 . 50 . 11 Failed 16 | . 1 . . . 15 Catastrophic 2 | . . . . . 2 Database Lockouts . | . . . . . . Manual 3 | . . . 3 . . Terminals 22 | . 2 . . . 20 Fabricators . | . . . . . . Repair Stations 3 | . . . . . 3 Recycling Units . | . . . . . . Scanalyzers 3 | . . . . . 3 Garrison Access . | . . . . . . Terminal Hacks 60 | . 1 . 50 . 9 Record 49 | . . . 49 . . Prototype ID Bank 1 | . 1 . . . . Branch Access Points 1 | . . . . . 1 Alert Level 1 | . . . . . 1 Locate Traps 3 | . . . . . 3 Security Status 1 | . . . . . 1 Patrol Status 1 | . . . . . 1 Recall Assault 1 | . . . . . 1 Hauler Manifests 1 | . . . . . 1 Derelict Proto ID Bank 1 | . . . 1 . . Fabricator Hacks . | . . . . . . Repair Station Hacks 2 | . . . . . 2 Scan Component 1 | . . . . . 1 Repair 1 | . . . . . 1 Recycling Unit Hacks . | . . . . . . Scanalyzer . | . . . . . . Garrison Access Hacks . | . . . . . . Unauthorized Hacks . | . . . . . . Terminals . | . . . . . . Fabricators . | . . . . . . Repair Stations . | . . . . . . Recycling Units . | . . . . . . Scanalyzers . | . . . . . . Garrison Access . | . . . . . . Data Cores Recovered 1 | . . . . . 1 Used . | . . . . . . Hacking Detections 8 | . 1 . . . 7 Full Trace Events . | . . . . . . Feedback Events . | . . . . . . Feedback Blocked . | . . . . . . Robot Schematics Acquired . | . . . . . . Robots Built . | . . . . . . Authchips . | . . . . . . Time . | . . . . . . Total Robot Build Rating . | . . . . . . Part Schematics Acquired . | . . . . . . Parts Built . | . . . . . . Authchips . | . . . . . . Time . | . . . . . . Total Part Build Rating . | . . . . . . Parts Repaired 1 | . . . . . 1 Time 38 | . . . . . 38 Parts Recycled . | . . . . . . Recycled Matter . | . . . . . . Retrieved Matter . | . . . . . . Retrieved Components . | . . . . . . Parts Scanalyzed . | . . . . . . Part Schematics Acquired . | . . . . . . Parts Damaged . | . . . . . . Bothacking | -11 -10 -10 -10 -9 -8 ------------ Run | Yrd Mat Min Exi Min Mat Used RIF Installer . | . . . . . . Robots Hacked . | . . . . . . Non-combat . | . . . . . . Combat . | . . . . . . Robot Hacks Applied . | . . . . . . Relay Couplers Released . | . . . . . . Fabnet Peak Effective % . | . . . . . . Robots Rewired . | . . . . . . Allies Hacked . | . . . . . . Hacks Repelled . | . . . . . . Allies | -11 -10 -10 -10 -9 -8 -------- Run | Yrd Mat Min Exi Min Mat Total Allies . | . . . . . . Largest Group . | . . . . . . Highest-Rated Group . | . . . . . . Highest-Rated Ally . | . . . . . . Total Orders . | . . . . . . Ally Attacks . | . . . . . . Total Damage . | . . . . . . Kills . | . . . . . . Allies Corrupted . | . . . . . . Allies Melted . | . . . . . . Intel | -11 -10 -10 -10 -9 -8 ------- Run | Yrd Mat Min Exi Min Mat Robot Analysis Total . | . . . . . . Derelict Logs Recovered 3 | . . 1 . 2 . Drone Launches . | . . . . . . Drone Recoveries . | . . . . . . Exploration | -11 -10 -10 -10 -9 -8 ------------- Run | Yrd Mat Min Exi Min Mat Turns Passed 4660 | 61 263 114 1021 342 2859 Spaces Moved 2626 | 37 164 56 849 232 1288 Core 24 | 12 . . . 1 11 Treads 752 | . . . . 41 711 Legs 1850 | 25 164 56 849 190 566 Wheels . | . . . . . . Hover . | . . . . . . Flight . | . . . . . . Fastest Speed 50 | 50 120 120 120 120 90 Average Speed 134 | 113 120 120 120 127 149 Slowest Speed 550 | 150 120 120 120 250 550 Overloaded Moves . | . . . . . . Propulsion Burnouts . | . . . . . . Robots Hopped . | . . . . . . Cave-ins Triggered . | . . . . . . Exploration Rate (%) 37 | 4 29 13 94 29 58 Regions Visited 5 Branch Regions 3 Pre-discovered Areas 2 | . . . 1 1 . Known Exits Taken . | . . . . . . Unknown Exits Taken 5 | 1 1 1 1 1 . Scrap Searched 1 | . . . . 1 . Spaces Dug . | . . . . . . Terrain Destroyed 121 | . . . . . 121 Melee . | . . . . . . Projectile 17 | . . . . . 17 AOE 104 | . . . . . 104 Terrain Rammed . | . . . . . . Walls Destroyed . | . . . . . . Machines Disabled . | . . . . . . Actions | -11 -10 -10 -10 -9 -8 --------- Run | Yrd Mat Min Exi Min Mat Total 3393 | 56 202 82 852 258 1943 Wait 334 | 6 2 12 . 8 306 Move 2621 | 36 163 55 848 231 1288 Hop . | . . . . . . Pick Up 73 | 8 10 . 1 1 53 Fast Attach 7 | . . . . . 7 Attach 63 | 6 2 . . 4 51 Detach 21 | . . . . 1 20 Swap 27 | . 4 2 . 1 20 Drop 53 | . 5 2 2 1 43 Fire 188 | . 16 11 . 11 150 Melee 5 | . . . . . 5 Ram . | . . . . . . Kick . | . . . . . . Crush . | . . . . . . Escape Stasis . | . . . . . . Rewire 1 | . . . 1 . . Trap . | . . . . . . Miscellaneous . | . . . . . . Route ------- -11/Scrapyard -10/Materials -10/Mines -10/Exiles (discovered 2 exits: [*Min x2]) -9/Mines -8/Materials (discovered 1 exit: Sto) History --------- Turn | Location | Event 17 | -11/Scrapyard | Discovered new exit (range 15) 62 | -11/Scrapyard | Entered Materials 278 | -10/Materials | Discovered new exit (range 12) 320 | -10/Materials | Build established: Mutant 325 | -10/Materials | Entered Mines 429 | -10/Mines | Deemed a non-threat by the Exiles lab entrance 430 | -10/Mines | Discovered new exit (range 5) 439 | -10/Mines | Entered Exiles 457 | -10/Exiles | Discovered new exit (range 14) 486 | -10/Exiles | Met 8R-AWN 507 | -10/Exiles | Met EX-HEX 585 | -10/Exiles | Met EX-DEC 613 | -10/Exiles | Learned location of Zion (-6) 666 | -10/Exiles | Discovered new exit (range 14) 751 | -10/Exiles | Met EX-BIN 880 | -10/Exiles | Aligned with FarCom system 881 | -10/Exiles | Given EX-Vault access code 1034 | -10/Exiles | Visited The Gauntlet 1336 | -10/Exiles | Opened EX-Vault 1346 | -10/Exiles | Found AWS/Thermal 1371 | -10/Exiles | Warned to stay clear of 0b10 Research branches 1460 | -10/Exiles | Left Exiles lab with AWS/Thermal 1460 | -10/Exiles | Entered Mines 1602 | -9/Mines | Discovered new exit (range 9) 1627 | -9/Mines | Learned Materials machine intel 1692 | -9/Mines | Assembled infested the area 1697 | -9/Mines | Assisted by a Guerilla fighting off Assembled 1728 | -9/Mines | Core integrity fell below 50% 1760 | -9/Mines | Lost 5 parts (1p2n2w) 1802 | -9/Mines | Entered Materials 1802 | -8/Materials | Evolved 4 slots: Propulsion x1, Utility x2, Weapon x1 1803 | -8/Materials | Identified exit to Storage 1804 | -8/Materials | Loaded intel: 40 machine locations 2073 | -8/Materials | Garrison activated, responded to threat 2194 | -8/Materials | Garrison activated, responded to threat 2622 | -8/Materials | Build established: Scavenger-Skirmisher 3443 | -8/Materials | Repaired Field Laser 3484 | -8/Materials | Build established: Mutant 3626 | -8/Materials | Garrison activated, responded to threat 3729 | -8/Materials | Core integrity fell below 50% 4202 | -8/Materials | First assault squad dispatched 4275 | -8/Materials | Garrison activated, responded to threat 4287 | -8/Materials | Core integrity fell below 20% 4614 | -8/Materials | Sterilization system engaged 4614 | -8/Materials | Non-combat units ordered to evacuate 4661 | -8/Materials | Destroyed by G-47 Trooper with Particle Gun Last Messages --------------- 04516_ W-25 Informer destroyed. 04518_ K-01 Serf collects debris. 04524_ U-05 Engineer builds a Door. 04525_ K-01 Serf collects debris. 04526_ Acquired Heat Sink. 04529_ Acquired 9 matter. 04599_ Y-45 Defender destroyed. 04602_ ALERT: Significant disruption in Zone 7X, assault force dispatched. 04608_ Acquired Hvy. Assault Rifle. 04611_ Acquired Ion Cannon. 04612_ Acquired 38 matter. 04613_ Acquired 9 matter. 04614_ ALERT: Persistent threat exposed, engaging Materials sterilization system. 04614_ ALERT: All non-combat units evacuate. 04649_ Y-45 Defender destroyed. 04653_ Acquired 23 matter. 04656_ C-30 ARC bursts open, deploying its payload. 04656_ G-47 Trooper unfolds itself. 04656_ B-36 Bruiser unfolds itself. Map ----- +----------------------------------------------------+ | ?????????????????????????????????????????????????? | | ?????????????????????????????????????????????????? | | ?????????????????????????????????????????????????? | | ?????????????????????????????????????????????????? | | ?????????????????????????????????????????????????? | | ?????????????????????????????????????????????????? | | ??????????????????????????"""""??????????????????? | | ??????????????>???????????""T""??????????????????? | | ?????????????????????????????????????????????????? | | ?????????????????????????????????????????????????? | | ?????????????????????????????????????????????????? | | ?????????????????????????????????????????????????? | | ????????????????????????###+####?????????????????? | | ????????????????????????? #?????????????????? | | ?????????????????????????? # ????"""?"""?????? | | ??????????????????????????? # ""??"""?"""?????? | | ???????????????????????????# # "Y??"""?"""?????? | | ??????????##???????????????# # ""??????????????? | | ????????### ###????????????# #? ??????????????? | | ????????# ############## ###+####??????????? | | ????????# #??????????? | | ????????# = ! #??????????? | | ????????# i #??????????? | | ????????# ## ### ########/##### #??????????? | | ????????###+######?# #??#[gb[% ! # =%#??????????? | | ???????????????????# #??#@""" # #??????????? | | ???????????????????# #??#%""" g ]*# #?????????## | | ???????????????????# #??# """ ]!# %############ | | ???????????????????# #?# g # % % =% | | ???????????????????# #?## " " ! # ! | | ????????"""""??????# #??# "R" # % | | ????????"""""??????# #??# """ # % | | ????????"""""??????# #??########### | | ??????????########## #????????????# %########### | | ??????????# """ # ############## #?????????? | | ??????????# "R" # % #?????????? | | ??????????# " " # % ########### | | ??????????# # % | | ??????????# # | | ??????????# """ + | | ??????????# """ # | | ??????????# """ ####+##### % | | ??????????# # #?# ############### | | #####?????# ######## #?# #????????????#! | | ################% "" #?# #???????????### | | ![[ ## """ #?# #??????????##! | | !=[ [ + """ !#?# #??????????#! | | ![[! ## #?# #??????????# | | ########### ########### #??????????#! | | ##?????????# # # #??????????#! | +----------------------------------------------------+ Best States ------------- Heat Dissipation 64 Energy Generation 18 Energy Capacity 490 Matter Stores 300 Matter Capacity 300 Sight Range 16 Terrain Scan Density 10 Power Amplification 20 Base Temperature (-) 100 Core Shielding 20 Evasion (%) 57 Targeting Accuracy 5 Target Analysis 5 Recoil Reduction 3 Offensive Hacking 10 Item Schematics ----------------- None Robot Schematics ------------------ None Fabricated ------------ Nothing Alien Tech Used ----------------- None Achievements -------------- Oops Party Time Challenges ------------ None Game ------ Seed ArcChainMount Manual? 0 Play Time 01:35:54 Cumulative 14.4 hours Start 2024.03.16 @ 04:22:32 End 2024.03.16 @ 06:01:43 Sessions 1 Manual Loads 0 Difficulty Rogue Special Mode None Game No. 8 Rogue 8 Adventurer 0 Explorer 0 Win Type - Total 0 Types 0/0/0/0/0/0/0/0/0 Lore% 16 Gallery% 13 Achievement% 13 Wizard Run 0 Options --------- Layout 0 ASCII 1 Keyboard 0 Movement Mouse Keybinds 0 Fullscreen 2 Font 18/Terminus Map View 76x50 Zoom Use 0% Tactical HUD 1 Map Filters NONE Filters NONE Steam 1 RUN: a43c7756-b7a7-4539-8dbb-5587afaaaf26